Cogmind - Beta 16 @@@ ROGUE MODE // 2025.10.27 @ 06:12:19 Player: Scringis Result: Self-destructed Performance ------------- Evolutions (1) 500 Regions Visited (2) 400 Robots Destroyed (10) 50 Value Destroyed (193) 193 Prototype IDs (1) 20 Alien Tech Used (0) 0 Bonus (0) 0 TOTAL SCORE: 1163 Bonus ------- None Cogmind --------- Core Integrity 196/400 Matter 267/300 Energy 70/100 System Corruption 0% Temperature Warning (359) Movement Core (250) Ox4 Location -9/Materials Parts ------- > --- POWER (1) -------- Faulty Heavy Ion Engine > --- PROPULSION (2) --- (None) > --- UTILITY (3) ------ Small Storage Unit Visual Processing Unit > --- WEAPON (3) ------- (None) > --- INVENTORY (8) ---- (None) Peak State ------------ > --- POWER ------------ Light Ion Engine > --- PROPULSION ------- Light Treads Light Treads > --- UTILITY ---------- Small Storage Unit Visual Processing Unit > --- WEAPON ----------- Light Assault Rifle Light Assault Rifle > --- INVENTORY -------- (None) [Rating: 8] Favorites ----------- Power Light Ion Engine Engine Light Ion Engine Propulsion Light Treads Treads Light Treads Utility Small Storage Unit Storage Small Storage Unit Processor Visual Processing Unit Weapon Light Assault Rifle Energy Gun EM Pulse Gun Ballistic Gun Light Assault Rifle Build | -11 -10 -9 ------- Run | Yrd Mat Mat Slots Evolved 2 | . . 2 Power . | . . . Propulsion . | . . . Utility 1 | . . 1 Weapon 1 | . . 1 Parts Attached 12 | 6 2 4 Power 3 | 1 1 1 Engine 3 | 1 1 1 Core . | . . . Reactor . | . . . Propulsion 3 | 2 . 1 Treads 3 | 2 . 1 Leg . | . . . Wheel . | . . . Hover . | . . . Flight . | . . . Utility 2 | 1 . 1 Device . | . . . Storage 1 | 1 . . Processor 1 | . . 1 Hackware . | . . . Protection . | . . . Artifact . | . . . Weapon 4 | 2 1 1 Energy Gun 1 | 1 . . Energy Cannon . | . . . Ballistic Gun 3 | 1 1 1 Ballistic Cannon . | . . . Launcher . | . . . Special Weapon . | . . . Impact Weapon . | . . . Slashing Weapon . | . . . Piercing Weapon . | . . . Special Melee Weapon . | . . . Unidentified Prototypes 1 | . . 1 Parts Lost 9 | . 2 7 Power 2 | . 1 1 Propulsion 3 | . . 3 Utility . | . . . Weapon 4 | . 1 3 Highest Loss Streak 6 | . 2 6 To Critical Strikes . | . . . Average Backups . | . . . Power . | . . . Propulsion . | . . . Utility . | . . . Weapon . | . . . Tool/Special . | . . . Unused Backups 1 | 1 . . Power . | . . . Propulsion . | . . . Utility . | . . . Weapon 1 | 1 . . Tool/Special . | . . . Average Slot Usage (%) 72 | . 78 67 Engine 10 | . 10 9 Treads 23 | . 28 19 Storage 12 | . 14 11 Processor 4 | . . 8 Energy Gun 3 | . 7 . Ballistic Gun 17 | . 17 17 Peak Build Rating 8 | 6 6 8 Average Rating 6 | 4 5 7 On Entrance 4 | . 6 6 Avg Prop Armor Cover (%) . | . . . Naked Turns . | . . . Heaviest Build 11 | 11 11 10 Greatest Support 40 | 40 40 40 Greatest Overweight (x) 2 | . . 2 Average Overweight (x) . | . . . Largest Inventory Capacity 8 | 8 8 8 Average Capacity 7 | 7 8 8 Most Carried 3 | 3 2 2 Average Carried . | . . . Final Capacity 8 | 8 8 8 Final Carried 1 | 1 . . Class Distribution -------------------- 100% | Mutant Dominant Class ---------------- Mutant | -10/Materials Mutant | -9/Materials Resources | -11 -10 -9 ----------- Run | Yrd Mat Mat Matter Collected 329 | 204 46 79 Remotely . | . . . Salvage Created 445 | . 62 383 Parts 18 | . 2 16 Haulers Intercepted 1 | . . 1 Recyclers Shooed . | . . . Parts Field Recycled . | . . . Retrieved Matter . | . . . Parts Self-Destructed . | . . . Prevented . | . . . Parts Restored . | . . . Kills | -11 -10 -9 ------- Run | Yrd Mat Mat Combat Hostiles Destroyed 6 | . 3 3 Guns 5 | . 2 3 AOE 1 | . 1 . Classes Destroyed 6 | . 2 4 Worker 1 | . . 1 Hauler 1 | . . 1 Recycler 2 | . . 2 Swarmer 2 | . 2 . Grunt 2 | . 1 1 Sentry 2 | . . 2 Best Kill Streak 3 | . 2 3 Combat Bots Only 2 | . 2 2 Max Kills in Single Turn 1 | . 1 1 Gunslinging . | . . . Exploded 1 | . 1 . Melee . | . . . Uniques/NPCs Destroyed . | . . . Combat | -11 -10 -9 -------- Run | Yrd Mat Mat Hostile Shots Fired 120 | . 51 69 Missed 27 | . 14 13 Hits 93 | . 37 56 Projectile 93 | . 37 56 Damage Taken 1130 | . 349 781 Core 283 | . 79 204 Absorbed by Shields . | . . . Core Remaining (%) 84 | 100 68 . Volleys Fired 47 | . 20 27 Largest 2 | . 2 2 Hottest 60 | . 60 43 Shots Fired 67 | . 28 39 Gun 67 | . 28 39 Cannon . | . . . Launcher . | . . . Special . | . . . Kinetic 59 | . 20 39 Thermal . | . . . Explosive . | . . . Electromagnetic 8 | . 8 . Robot Hit Streak 14 | . 9 14 Robot Miss Streak 2 | . 2 1 Penetration Max . | . . . Secondary Targets 1 | . . 1 Max Gunslinging Chain 1 | . . 1 Shots Hit Robots 56 | . 22 34 Core Hits 19 | . 5 14 Critical Kills . | . . . Critical Parts Destroyed . | . . . Critical Strikes . | . . . Melee Attacks . | . . . Impact . | . . . Slashing . | . . . Piercing . | . . . Sneak Attacks . | . . . Combat Hostiles . | . . . Follow-up Attacks . | . . . Damage Inflicted 557 | . 233 324 Guns 507 | . 186 321 Cannons . | . . . Explosions 47 | . 47 . Melee . | . . . Ramming 3 | . . 3 Kinetic 453 | . 132 321 Thermal 47 | . 47 . Explosive . | . . . Electromagnetic 54 | . 54 . Impact . | . . . Slashing . | . . . Piercing . | . . . Highest Corruption . | . . . Average Corruption . | . . . Corruption Purged . | . . . Corruption Blocked . | . . . Overload Shots . | . . . Overflow Damage 16 | . 16 . Projectiles . | . . . Explosions 16 | . 16 . Melee . | . . . Knockbacks . | . . . Impact . | . . . Kinetic . | . . . Secondary . | . . . Self-Inflicted Damage 22 | . 22 . Shots 1 | . 1 . Rammed 2 | . . 2 Targets Rammed 2 | . . 2 Kicked . | . . . Crushed . | . . . Highest Temperature 347 | . 80 347 Average Temperature 32 | . 32 31 Received Heat Transfer 330 | . 66 264 Siege Activations . | . . . Martial Activations . | . . . Shielding Activations . | . . . Robots Disrupted . | . . . Combat Hostiles . | . . . Robots Corrupted . | . . . Combat Hostiles . | . . . Parts Fried . | . . . Impact Corruptions . | . . . Robots Melted . | . . . Combat Hostiles . | . . . Parts Melted . | . . . Heat Transferred 50 | . 50 . Parts Sabotaged . | . . . Parts Stolen . | . . . Parts Stripped . | . . . Power Chain Reactions 1 | . 1 . Alert | -11 -10 -9 ------- Run | Yrd Mat Mat Maximum Alert Level . | . . . Low Security (%) 100 | 100 100 100 Level 1 . | . . . Level 2 . | . . . Level 3 . | . . . Level 4 . | . . . Level 5 . | . . . High Security . | . . . Max Security . | . . . Peak Influence 35 | . 32 35 Initial . | . . . Average 5 | . 9 5 Influence Increases 184 | . 72 112 Destroy 0b10 Robot/C 120 | . 60 60 Destroy 0b10 Robot/NC 20 | . . 20 Destroy Leader 42 | . 10 32 Destroy Structure 2 | . 2 . Influence Decreases 169 | . 72 97 Time Decay 79 | . 52 27 Lost Part 90 | . 20 70 Squads Dispatched 1 | . . 1 Investigation 1 | . . 1 Extermination . | . . . Reinforcement . | . . . Assault . | . . . Garrison . | . . . Intercept . | . . . Searches Triggered . | . . . Construction Impeded . | . . . Haulers Reinforced . | . . . Active Scanning Responses . | . . . Cargo Convoy Interrupts . | . . . Stealth | -11 -10 -9 --------- Run | Yrd Mat Mat Distress Signals 2 | . . 2 Communications Jammed . | . . . Distress Signals . | . . . Times Spotted 17 | . 8 9 Peak Tracking Total 6 | . 4 6 Tactical Retreats . | . . . Traps | -11 -10 -9 ------- Run | Yrd Mat Mat Traps Triggered 1 | . . 1 Indirectly . | . . . Trap Hack Attempts . | . . . Triggered . | . . . Disarmed . | . . . Reprogrammed . | . . . Reused . | . . . Traps Extracted . | . . . Installed . | . . . Triggered . | . . . Machines | -11 -10 -9 ---------- Run | Yrd Mat Mat Machines Disabled . | . . . Max in Single Turn . | . . . Machines Repaired . | . . . Machines Dismantled . | . . . Machines Sabotaged . | . . . Overloaded Fab Kills . | . . . Hacking | -11 -10 -9 --------- Run | Yrd Mat Mat Machines Accessed . | . . . Terminals . | . . . Fabricators . | . . . Repair Stations . | . . . Recycling Units . | . . . Scanalyzers . | . . . Garrison Access . | . . . Total Hacks . | . . . Successful . | . . . Failed . | . . . Catastrophic . | . . . Database Lockouts . | . . . Manual . | . . . Terminals . | . . . Fabricators . | . . . Repair Stations . | . . . Recycling Units . | . . . Scanalyzers . | . . . Garrison Access . | . . . Terminal Hacks . | . . . Fabricator Hacks . | . . . Repair Station Hacks . | . . . Recycling Unit Hacks . | . . . Scanalyzer . | . . . Garrison Access Hacks . | . . . Unauthorized Hacks . | . . . Terminals . | . . . Fabricators . | . . . Repair Stations . | . . . Recycling Units . | . . . Scanalyzers . | . . . Garrison Access . | . . . Data Cores Recovered . | . . . Used . | . . . Hacking Detections . | . . . Full Trace Events . | . . . Feedback Events . | . . . Feedback Blocked . | . . . Robot Schematics Acquired . | . . . Robots Built . | . . . Authchips . | . . . Time . | . . . Total Robot Build Rating . | . . . Part Schematics Acquired . | . . . Parts Built . | . . . Authchips . | . . . Time . | . . . Total Part Build Rating . | . . . Part Studies Acquired . | . . . Parts Repaired . | . . . Time . | . . . Parts Recycled . | . . . Recycled Matter . | . . . Retrieved Matter . | . . . Retrieved Components . | . . . Parts Scanalyzed . | . . . Part Schematics Acquired . | . . . Parts Damaged . | . . . Bothacking | -11 -10 -9 ------------ Run | Yrd Mat Mat Used RIF Installer . | . . . Robots Hacked . | . . . Non-combat . | . . . Combat . | . . . Robot Hacks Applied . | . . . Relay Couplers Released . | . . . Fabnet Peak Effective % . | . . . Robots Rewired . | . . . Allies Hacked . | . . . Hacks Repelled . | . . . Allies | -11 -10 -9 -------- Run | Yrd Mat Mat Total Allies . | . . . Largest Group . | . . . Highest-Rated Group . | . . . Highest-Rated Ally . | . . . Total Orders . | . . . Ally Attacks . | . . . Total Damage . | . . . Kills . | . . . Allies Corrupted . | . . . Allies Melted . | . . . Intel | -11 -10 -9 ------- Run | Yrd Mat Mat Active Infowar (turns) 169 | . . 169 Optics 169 | . . 169 Robot Analysis Total . | . . . Derelict Logs Recovered . | . . . Drone Launches . | . . . Drone Recoveries . | . . . Exploration | -11 -10 -9 ------------- Run | Yrd Mat Mat Turns Passed 490 | 94 200 196 Spaces Moved 213 | 53 90 70 Core 7 | 4 . 3 Treads 206 | 49 90 67 Legs . | . . . Wheels . | . . . Hover . | . . . Flight . | . . . Fastest Speed 50 | 50 160 150 Average Speed 157 | 151 160 159 Slowest Speed 160 | 160 160 160 Overloaded Moves . | . . . Propulsion Burnouts . | . . . Robots Hopped . | . . . Potential Cave-ins . | . . . Cave-ins Triggered . | . . . Exploration Rate (%) 13 | 4 22 15 Regions Visited 2 Branch Regions . Pre-discovered Areas . | . . . Known Exits Taken . | . . . Unknown Exits Taken 2 | 1 1 . Scrap Searched . | . . . Spaces Dug . | . . . Terrain Destroyed 2 | . 2 . Melee . | . . . Projectile . | . . . AOE 2 | . 2 . Terrain Rammed . | . . . Walls Destroyed . | . . . Machines Disabled . | . . . Actions | -11 -10 -9 --------- Run | Yrd Mat Mat Total 308 | 67 122 119 Wait 22 | . 10 12 Move 211 | 52 89 70 Hop . | . . . Pick Up 12 | 8 1 3 Fast Attach . | . . . Attach 12 | 6 2 4 Detach . | . . . Swap 1 | . . 1 Drop 1 | 1 . . Fire 47 | . 20 27 Melee . | . . . Ram . | . . . Kick . | . . . Crush 2 | . . 2 Escape Stasis . | . . . Rewire . | . . . Trap . | . . . Miscellaneous . | . . . Route ------- -11/Scrapyard -10/Materials -9/Materials History --------- Turn | Location | Event 23 | -11/Scrapyard | Discovered new exit (range 15) 95 | -11/Scrapyard | Entered Materials 280 | -10/Materials | Discovered new exit (range 7) 295 | -10/Materials | Entered another Materials area 295 | -9/Materials | Evolved 2 slots: Utility x1, Weapon x1 302 | -9/Materials | Build established: Mutant 490 | -9/Materials | Core integrity fell below 50% 491 | -9/Materials | Self-destructed Last Messages --------------- Defender. 00474_ K-01 Serf collects debris. 00476_ R-06 Scavenger collects Lgt. Ion Engine. 00476_ Lgt. Treads destroyed. 00477_ K-01 Serf collects debris. 00479_ R-06 Scavenger collects Lgt. Treads. 00479_ Lgt. Assault Rifle destroyed. 00479_ Y-45 Defender destroyed. 00480_ K-01 Serf collects debris. 00481_ K-01 Serf destroyed. 00483_ R-06 Scavenger collects Prototype Engine. 00483_ Acquired 2 matter. 00487_ R-06 Scavenger collects Sml. Storage Unit. 00488_ Acquired Prototype Engine. 00489_ Hvy. Assault Rifle destroyed. 00490_ Identified Hvy. Ion Engine. 00490_ Faulty integration triggers heat surge (+375). 00491_ Lgt. Treads destroyed. Map ----- +----------------------------------------------------+ | ?????????????????????????????????? ??# # | | ?????????????????????????????????? ??# # | | ?????????????????????????????????? ??# ######### | | ?????????????????????????????????? ??# # | | ?????????????????????????????????# #?# # """" | | ?????????????????????????????????# #?# # """" | | ?????????????????????????????????# #?# # """" | | ?????????????????????????????????# #?# + | | ???????????????????????#+#???????# #?# # | | ???????????????????????# #???????# #?### # " " | | ???????????????????????# #???????# #???# # "R" | | ???????????????????????# #???????# #???# # """ | | ???????????????????????# #?####### #???# ########+ | | ???????????????????????# #?# #???# #???????? | | ???????????????????????# #?# ##### #???# #???????? | | ??????????????????????## ### #???# #???# #???????? | | ??????????????????????# #???# ##### #######?? | | ??????????????????????# #####??# | | ???????????????????#??# # #??########## ####?? | | ???????????????#####g?# # #?????????????#????? | | ?????????####### ## # #??????????????????? | | ??????? g # #??????????????????? | | ??????? !==# #??????????????????? | | ??????? *%=# = #??????????????????? | | ?????????####### ## r!#%%=#??????????????????? | | ???????????????######?# %@##+###?????????????????? | | ??????????????????????# !* [%!#?????????????????? | | ??????????????????????# % + ????????????? | | ????????????????????#"" # "T" #???????? | | ????????????????????#"T """ #?""" #???????? | | ????????????????????#"" """ #?? ???????????? | | ????????????????????### """ #???###???????????? | | ??????????????????????# g #?????????????????? | | ??????????????????????# T?????????????????? | | ??????????????????????# a""" ##????????????????? | | ??????????????????????#g """ #?????????????????? | | ??????????????????????k ??" ?????????????????? | | ?????????????????????? ?? ?????????????????? | | ????????????????????? ?? ????????????????? | | ?????????????????????###+??######????????????????? | | ?????????????????????????????????????????????????? | | ?????????????????????????????????????????????????? | | ?????????????????????????????????????????????????? | | ?????????????????????????????????????????????????? | | ?????????????????????????????????????????????????? | | ?????????????????????????????????????????????????? | | ?????????????????????????????????????????????????? | | ?????????????????????????????????????????????????? | | ?????????????????????????????????????????????????? | | ?????????????????????????????????????????????????? | +----------------------------------------------------+ Best States ------------- Heat Dissipation 28 Energy Generation 10 Energy Capacity 125 Matter Stores 300 Matter Capacity 300 Sight Range 18 Terrain Scan Density 10 Evasion (%) 40 Recoil Reduction 2 Item Schematics ----------------- None Robot Schematics ------------------ None Fabricated ------------ Nothing Repaired ---------- Nothing Studied --------- None Alien Tech Used ----------------- None Achievements -------------- Overwhelming Challenges ------------ None Game ------ Seed AntisysCoreDrillbomb Manual? 0 Play Time 00:03:46 Cumulative 23.4 hours Start 2025.10.27 @ 06:09:38 End 2025.10.27 @ 06:12:19 Sessions 1 Manual Loads 0 Difficulty Rogue Special Mode None Game No. 74 Rogue 74 Adventurer 0 Explorer 0 Win Type - Total 0 Types 0/0/0/0/0/0/0/0/0/0 Lore% 19 Gallery% 22 Achievement% 15 Wizard Run 0 Options --------- Layout 1 ASCII 0 Keyboard 0 Movement Arrows Keybinds 0 Fullscreen 2 Font 24/Smallcaps Map View 50x35 Zoom Use 0% Tactical HUD 1 Map Filters NONE Filters NONE Steam 1 RUN: e4408371-7eb7-4543-a615-ddf59be9b1e6